fUSD/lending_fUSD_20241108
["ID","MTS","AMOUNT","RATE_DAILY","PERIOD"]
[341615889,1731036652269,-153.0,0.00027397,2]
[341615890,1731036652279,-153.0,0.00027397,2]
[341615891,1731036652288,-153.0,0.00027397,2]
[341615892,1731036652297,-153.0,0.00027397,2]
[341615893,1731036652306,-153.0,0.00027397,2]
[341615894,1731036652317,-153.0,0.00027397,2]
[341615895,1731036652326,-153.0,0.00027397,2]
[341615896,1731036652335,-153.0,0.00027397,2]
[341615897,1731036652344,-153.0,0.00027397,2]
[341615898,1731036652354,-153.0,0.00027397,2]
[341615899,1731036652363,-153.0,0.00027397,2]
[341615900,1731036652372,-153.0,0.00027397,2]
[341615901,1731036652381,-153.0,0.00027397,2]
[341615902,1731036652390,-153.0,0.00027397,2]
[341615903,1731036652399,-153.0,0.00027397,2]
[341615904,1731036652408,-153.0,0.00027397,2]
[341615905,1731036652417,-153.0,0.00027397,2]
[341615906,1731036652426,-153.0,0.00027397,2]
[341615907,1731036652435,-153.0,0.00027397,2]
[341615908,1731036652445,-153.0,0.00027397,2]
[341615909,1731036652455,-153.0,0.00027397,2]
[341615910,1731036652464,-153.0,0.00027397,2]
[341615911,1731036652473,-153.0,0.00027397,2]
[341615912,1731036652482,-153.0,0.00027397,2]
[341615913,1731036652492,-153.0,0.00027397,2]
[341615914,1731036652503,-153.0,0.00027397,2]
[341615915,1731036652512,-153.0,0.00027397,2]
[341615916,1731036652521,-153.0,0.00027397,2]
[341615917,1731036652531,-153.0,0.00027397,2]
[341615918,1731036652540,-153.0,0.00027397,2]
[341615919,1731036652549,-153.0,0.00027397,2]
[341615920,1731036652558,-153.0,0.00027397,2]
[341615921,1731036652568,-153.0,0.00027397,2]
[341615922,1731036652577,-153.0,0.00027397,2]
[341615923,1731036652586,-153.0,0.00027397,2]
[341615924,1731036652595,-153.0,0.00027397,2]
[341615925,1731036652604,-153.0,0.00027397,2]
[341615926,1731036652613,-153.0,0.00027397,2]
[341615927,1731036652623,-153.0,0.00027397,2]
[341615928,1731036652632,-153.0,0.00027397,2]
[341615929,1731036652641,-153.0,0.00027397,2]
[341615930,1731036652650,-153.0,0.00027397,2]
[341615931,1731036652660,-153.0,0.00027397,2]
[341615932,1731036652669,-153.0,0.00027397,2]
[341615933,1731036652678,-179.0,0.00027397,2]
[341615934,1731036652687,-179.0,0.00027397,2]
[341615935,1731036652696,-179.0,0.00027397,2]
[341615936,1731036652706,-179.0,0.00027397,2]
[341615937,1731036652716,-179.0,0.00027397,2]
[341615938,1731036652726,-179.0,0.00027397,2]
[341615939,1731036652736,-179.0,0.00027397,2]
[341615940,1731036652745,-179.0,0.00027397,2]
[341615941,1731036652757,-179.0,0.00027397,2]
[341615942,1731036652771,-153.0,0.00027397,2]
[341615943,1731036652782,-153.0,0.00027397,2]
[341615944,1731036652792,-153.0,0.00027397,2]
[341615945,1731036652802,-153.0,0.00027397,2]
[341615946,1731036652812,-153.0,0.00027397,2]
[341615947,1731036652822,-153.0,0.00027397,2]
[341615948,1731036652831,-153.0,0.00027397,2]
[341615949,1731036652841,-153.0,0.00027397,2]
[341615950,1731036652850,-153.0,0.00027397,2]
[341615951,1731036652960,-263.969992,0.00027397,7]
[341615952,1731036652971,-153.0,0.00027397,2]
[341615953,1731036652979,-153.0,0.00027397,2]
[341615954,1731036652988,-153.0,0.00027397,2]
[341615955,1731036652998,-153.0,0.00027397,2]
[341615956,1731036653015,-153.0,0.00027397,2]
[341615957,1731036653024,-153.0,0.00027397,2]
[341615958,1731036653034,-153.0,0.00027397,2]
[341615959,1731036653043,-153.0,0.00027397,2]
[341615960,1731036653052,-153.0,0.00027397,2]
[341615961,1731036653061,-153.0,0.00027397,2]
[341615962,1731036653070,-153.0,0.00027397,2]
[341615963,1731036653080,-153.0,0.00027397,2]
[341615964,1731036653089,-153.0,0.00027397,2]
[341615965,1731036653098,-153.0,0.00027397,2]
[341615966,1731036653107,-153.0,0.00027397,2]
[341615967,1731036653116,-153.0,0.00027397,2]
[341615968,1731036653125,-153.0,0.00027397,2]
[341615969,1731036653134,-153.0,0.00027397,2]
[341615970,1731036653144,-153.0,0.00027397,2]
[341615971,1731036653154,-153.0,0.00027397,2]
[341615972,1731036653165,-153.0,0.00027397,2]
[341615973,1731036653175,-200.0,0.00027397,7]
[341615974,1731036653186,-3000.0,0.00027397,2]
[341615975,1731036653196,-3000.0,0.00027397,2]
[341615976,1731036653208,-3000.0,0.00027397,2]
[341615977,1731036653219,-3000.0,0.00027397,2]
[341615978,1731036653229,-3000.0,0.00027397,2]
[341615979,1731036653241,-155.536532,0.00027397,2]
[341615980,1731036653253,-329.15,0.00027397,10]
[341615981,1731036653263,-209.0,0.000274,30]
[341615982,1731036653272,-160.80897769,0.00027404,2]
[341615983,1731036653282,-150.0,0.00027406,2]
[341615984,1731036653291,-150.0,0.00027406,2]
[341615985,1731036653300,-152.201,0.00027406,2]
[341615986,1731036653309,-150.488,0.00027406,2]
[341615987,1731036653321,-181.534,0.00027406,2]
[341615988,1731036653332,-150.0,0.00027406,2]
[341615989,1731036653343,-250.0,0.00027406,2]
[341615990,1731036653352,-248.7,0.00027406,2]
[341615991,1731036653361,-150.363,0.00027406,2]
[341615992,1731036653371,-203.184,0.00027406,2]
[341615993,1731036653382,-204.2,0.00027406,2]
[341615994,1731036653392,-1921.0,0.00027406,2]
[341615995,1731036653402,-813.0,0.00027406,2]
[341615996,1731036653413,-1258.0,0.00027406,2]
[341615997,1731036653422,-921.0,0.00027406,2]
[341615998,1731036653431,-2909.0,0.00027406,2]
[341615999,1731036653441,-3463.0,0.00027406,2]
[341616000,1731036653450,-631.0,0.00027406,2]
[341616001,1731036653460,-5924.0,0.00027406,2]
[341616002,1731036653469,-150.0,0.00027406,2]
[341616003,1731036653479,-452.0,0.00027406,2]
[341616004,1731036653488,-1253.0,0.00027406,2]
[341616005,1731036653497,-1097.081,0.00027406,2]
[341616006,1731036653507,-150.0,0.00027419,2]
[341616007,1731036653517,-5000.0,0.00027424,2]
[341616008,1731036653526,-153.15857523,0.00027431,2]
[341616009,1731036653535,-426.83376219,0.00027431,2]
[341616010,1731036653545,-150.0,0.00027432,2]
[341616011,1731036653554,-150.0,0.00027439,2]
[341616012,1731036653564,-150.0,0.00027441,2]
[341616013,1731036653574,-2110.0,0.00027444,2]
[341616014,1731036653583,-150.0,0.00027448,2]
[341616015,1731036653593,-5000.0,0.00027451,2]
[341616016,1731036653602,-150.0,0.00027458,2]
[341616017,1731036653611,-500.0,0.00027467,2]
[341616018,1731036653621,-150.110806,0.00027478,3]
[341616019,1731036653630,-5000.0,0.00027479,2]
[341616020,1731036653639,-150.0,0.00027489,2]
[341616021,1731036653648,-170.79,0.00027495,2]
[341616022,1731036653657,-150.0,0.00027496,2]
[341616023,1731036653667,-300.0,0.00027499,120]
[341616024,1731036653677,-491.13934935,0.00027499,10]
[341616025,1731036653686,-26078.234521,0.000275,2]
[341616026,1731036653695,-1189.728401,0.000275,5]
[341616027,1731036653705,-14077.64480104,0.000275,2]
[341616028,1731036653715,-55986.77833267,0.000275,2]
[341616029,1731036653725,-859.0,0.000275,2]
[341616030,1731036653734,-363.0,0.000275,2]
[341616031,1731036653743,-1000.0,0.000275,2]
[341616032,1731036653754,-2189.4259902,0.00027506,2]
[341616033,1731036653763,-153.72,0.00027507,2]
[341616034,1731036653773,-1536.19548965,0.00027529,2]
[341616035,1731036653783,-500.0,0.00027529,2]
[341616036,1731036653792,-500.0,0.00027529,2]
[341616037,1731036653801,-500.0,0.00027529,2]
[341616038,1731036653810,-500.0,0.00027529,2]
[341616039,1731036653819,-500.0,0.00027529,2]
[341616040,1731036653829,-422.8235,0.00027529,2]
[341616041,1731036653838,-1000.0,0.00027529,2]
[341616042,1731036653848,-1000.0,0.00027529,2]
[341616043,1731036653857,-1000.0,0.00027529,2]
[341616044,1731036653867,-1000.0,0.00027529,2]
[341616045,1731036653876,-1000.0,0.00027529,2]
[341616046,1731036653885,-1000.0,0.00027529,2]
[341616047,1731036653895,-1000.0,0.00027529,2]
[341616048,1731036653904,-1000.0,0.00027529,2]
[341616049,1731036653914,-1000.0,0.00027529,2]
[341616050,1731036653923,-1000.0,0.00027529,2]
[341616051,1731036653932,-1000.0,0.00027529,2]
[341616052,1731036653942,-1000.0,0.00027529,2]
[341616053,1731036653951,-1000.0,0.00027529,2]
[341616054,1731036653960,-1000.0,0.00027529,2]
[341616055,1731036653969,-1000.0,0.00027529,2]
[341616056,1731036653979,-1000.0,0.00027529,2]
[341616057,1731036653988,-1000.0,0.00027529,2]
[341616058,1731036653999,-1000.0,0.00027529,2]
[341616059,1731036654008,-1000.0,0.00027529,2]
[341616060,1731036654018,-1000.0,0.00027529,2]
[341616061,1731036654027,-1000.0,0.00027529,2]
[341616062,1731036654036,-1000.0,0.00027529,2]
[341616063,1731036654045,-1000.0,0.00027529,2]
[341616064,1731036654055,-1000.0,0.00027529,2]
[341616065,1731036654064,-1000.0,0.00027529,2]
[341616066,1731036654073,-1000.0,0.00027529,2]
[341616067,1731036654082,-1000.0,0.00027529,2]
[341616068,1731036654091,-1000.0,0.00027529,2]
[341616069,1731036654101,-1000.0,0.00027529,2]
[341616070,1731036654111,-1000.0,0.00027529,2]
[341616071,1731036654121,-530.1109,0.00027529,2]
[341616072,1731036654130,-150.0,0.00027537,2]
[341616073,1731036654140,-150.0,0.0002757,2]
[341616074,1731036654149,-155.45469238,0.00027571,2]
[341616075,1731036654159,-786.20664418,0.00027571,2]
[341616076,1731036654168,-181.8412666,0.00027571,2]
[341616077,1731036654178,-150.0,0.00027573,2]
[341616078,1731036654187,-150.110806,0.00027578,4]
[341616079,1731036654196,-2589.89345106,0.000276,2]
[341616080,1731036654205,-398.0,0.000276,11]
[341616081,1731036654215,-196.0,0.000276,11]
[341616082,1731036654224,-150.0,0.000276,2]
[341616083,1731036654234,-1400.0,0.000276,10]
[341616084,1731036654246,-318.66082909,0.00027602,2]
[341616085,1731036654257,-150.0,0.00027624,2]
[341616086,1731036654266,-529.4,0.00027625,120]
[341616087,1731036654276,-150.0,0.00027628,2]
[341616088,1731036654286,-154.59,0.00027647,2]
[341616089,1731036654295,-7735.1679874,0.00027652,2]
[341616090,1731036654304,-8802.4740324,0.00027652,2]
[341616091,1731036654313,-9869.7800773,0.00027652,2]
[341616092,1731036654324,-2319.7775619,0.00027659,2]
[341616093,1731036654334,-500.0,0.00027665,30]
[341616094,1731036654343,-500.0,0.00027665,30]
[341616095,1731036654352,-500.0,0.00027665,30]
[341616096,1731036654362,-251.69941202,0.00027665,30]
[341616097,1731036654372,-726.32637044,0.00027666,2]
[341616098,1731036654382,-300.0,0.0002767,2]
[341616099,1731036654391,-500.0,0.0002767,2]
[341616100,1731036654401,-2645928.11809573,0.0002767,4]
[341616101,1731036655118,-568.10296949,0.0002767,4]
[341616102,1731036655160,-855.49433364,0.0002767,4]
[341616103,1731036655177,-1854.17830072,0.0002767,4]
[341616104,1731036768466,161.0,0.00025,7]
[341616105,1731036797514,9132.0,0.0002,2]
[341616107,1731036829470,158.73,0.00015342,2]
[341616112,1731037440815,154.07,0.00015342,2]
[341616114,1731037543113,-227.58515394,0.00023908,2]
[341616116,1731037746118,-790.35484606,0.00023908,2]
[341616127,1731037829860,-172.81,0.00025615,120]
[341616142,1731037837997,-442.161779,0.00024707,2]
[341616143,1731037838007,-1334.99886768,0.00024832,2]
[341616144,1731037838017,-500.0,0.00024932,2]
[341616145,1731037838026,-224.14,0.00025244,2]
[341616146,1731037838036,-500.0,0.00025521,7]
[341616147,1731037838045,-500.0,0.00025521,7]
[341616148,1731037838055,-500.0,0.00025521,7]
[341616149,1731037838064,-371.08,0.00025527,2]
[341616150,1731037838074,-160.0,0.00025604,2]
[341616151,1731037838084,-167.36,0.00025626,2]
[341616152,1731037838094,-1899.35,0.00025664,2]
[341616153,1731037838104,-23900.0,0.00025719,2]
[341616154,1731037838113,-250.0,0.00025719,2]
[341616155,1731037838122,-250.0,0.00025726,2]
[341616156,1731037838133,-155.52,0.00025758,2]
[341616157,1731037838142,-157.13,0.00025832,30]
[341616158,1731037838152,-630.73,0.00026015,120]
[341616159,1731037838162,-840.0,0.00026122,2]
[341616160,1731037838172,-1017.94,0.00026172,2]
[341616161,1731037838182,-268.57,0.00026293,2]
[341616162,1731037838191,-432.7,0.00026301,2]
[341616163,1731037838200,-150.0,0.00026301,2]
[341616164,1731037838209,-215.16,0.0002635,2]
[341616165,1731037838218,-432.7,0.00026578,2]
[341616166,1731037838229,-300.0,0.000269,9]
[341616167,1731037838238,-37426.99742522,0.00026923,2]
[341616168,1731037838248,-20768.3379,0.00026933,2]
[341616169,1731037838257,-4363.62666488,0.00026965,2]
[341616170,1731037838266,-160.05,0.00027,4]
[341616171,1731037838275,-56369.29728084,0.00027,2]
[341616172,1731037838285,-1242.59614096,0.00027017,2]
[341616173,1731037838294,-162.88386,0.00027088,2]
[341616174,1731037838303,-1242.59614095,0.00027107,2]
[341616175,1731037838313,-1138.53459047,0.00027117,2]
[341616176,1731037838322,-153.55,0.00027123,2]
[341616177,1731037838332,-432.7,0.00027123,2]
[341616178,1731037838341,-1931.38,0.00027123,2]
[341616179,1731037838350,-432.7,0.00027123,2]
[341616180,1731037838359,-432.7,0.00027123,2]
[341616181,1731037838368,-150.0,0.00027123,2]
[341616182,1731037838377,-496.91,0.00027123,2]
[341616183,1731037838387,-150.0,0.00027123,2]
[341616184,1731037838396,-150.0,0.00027123,2]
[341616185,1731037838406,-150.0,0.00027123,2]
[341616186,1731037838415,-150.0,0.00027123,2]
[341616187,1731037838426,-150.0,0.00027123,2]
[341616188,1731037838435,-432.7,0.00027123,2]
[341616189,1731037838443,-150.0,0.00027123,2]
[341616190,1731037838452,-150.0,0.00027123,2]
[341616191,1731037838461,-441.77,0.00027123,2]
[341616192,1731037838471,-432.7,0.00027123,2]
[341616193,1731037838479,-320.12532166,0.0002713,2]
[341616194,1731037838488,-500.0,0.00027165,7]
[341616195,1731037838498,-5095.899,0.00027165,2]
[341616196,1731037838507,-500.0,0.00027165,7]
[341616197,1731037838516,-500.0,0.00027165,7]
[341616198,1731037838525,-1242.59614095,0.00027197,2]
[341616199,1731037838535,-500.0,0.00027229,2]
[341616200,1731037838544,-628.42623212,0.00027229,2]
[341616201,1731037838554,-500.0,0.00027229,2]
[341616202,1731037838563,-500.0,0.00027229,2]
[341616203,1731037838573,-500.0,0.00027229,2]
[341616204,1731037838582,-500.0,0.00027229,2]
[341616205,1731037838591,-450.0,0.00027229,2]
[341616206,1731037838601,-131852.0888,0.0002723,2]
[341616207,1731037838610,-935.4146,0.0002723,2]
[341616208,1731037838619,-32944.52206723,0.0002727,2]
[341616209,1731037838629,-4363.62666486,0.00027291,2]
[341616210,1731037838638,-1369.698,0.00027296,16]
[341616211,1731037838648,-55785.0548,0.00027297,2]
[341616212,1731037838657,-318.66082909,0.00027297,2]
[341616213,1731037838666,-150.110806,0.00027348,3]
[341616214,1731037838677,-500.0,0.00027373,2]
[341616215,1731037838688,-2000.0,0.0002739,2]
[341616216,1731037838698,-500.0,0.00027397,2]
[341616217,1731037838708,-509.32126579,0.00027397,2]
[341616218,1731037838717,-500.0,0.00027397,2]
[341616219,1731037838726,-500.0,0.00027397,2]
[341616220,1731037838735,-698.08,0.00027397,2]
[341616221,1731037838745,-500.0,0.00027397,2]
[341616222,1731037838754,-500.0,0.00027397,2]
[341616224,1731037838764,-500.0,0.00027397,2]
[341616225,1731037838776,-500.0,0.00027397,2]
[341616227,1731037838785,-500.0,0.00027397,2]
[341616230,1731037838794,-539.27519232,0.00027397,2]
[341616232,1731037838803,-500.0,0.00027397,2]
[341616234,1731037838813,-553.7855299,0.00027397,2]
[341616236,1731037838823,-365.43327213,0.00027397,2]
[341616238,1731037838832,-500.0,0.00027397,2]
[341616240,1731037838842,-669.8,0.00027397,2]
[341616242,1731037838851,-500.0,0.00027397,2]
[341616244,1731037838860,-500.0,0.00027397,2]
[341616246,1731037838869,-500.00941789,0.00027397,2]
[341616248,1731037838878,-3156.15,0.00027397,2]
[341616250,1731037838888,-509.77102144,0.00027397,2]
[341616252,1731037838897,-500.0,0.00027397,2]
[341616253,1731037838906,-515.42954699,0.00027397,2]
[341616255,1731037838916,-500.0,0.00027397,2]
[341616257,1731037838929,-500.0,0.00027397,2]
[341616259,1731037838945,-500.0,0.00027397,2]
[341616261,1731037838955,-500.0,0.00027397,2]
[341616263,1731037838964,-500.0,0.00027397,2]
[341616265,1731037838973,-500.0,0.00027397,2]
[341616267,1731037838982,-500.0,0.00027397,2]
[341616269,1731037838992,-537.6,0.00027397,2]
[341616271,1731037839001,-500.0,0.00027397,2]
[341616273,1731037839011,-166.15005261,0.00027397,2]
[341616275,1731037839020,-500.0,0.00027397,2]
[341616277,1731037839029,-500.0,0.00027397,2]
[341616279,1731037839038,-215.830869,0.00027397,2]
[341616281,1731037839047,-500.0,0.00027397,2]
[341616283,1731037839055,-500.0,0.00027397,2]
[341616285,1731037839065,-500.0,0.00027397,2]
[341616286,1731037839074,-500.0,0.00027397,2]
[341616288,1731037839083,-500.0,0.00027397,2]
[341616290,1731037839094,-500.0,0.00027397,2]
[341616292,1731037839103,-500.0,0.00027397,2]
[341616294,1731037839113,-500.0,0.00027397,2]
[341616296,1731037839122,-500.0,0.00027397,2]
[341616298,1731037839132,-500.0,0.00027397,2]
[341616300,1731037839141,-571.41,0.00027397,2]
[341616302,1731037839150,-500.0,0.00027397,2]
[341616304,1731037839160,-500.0,0.00027397,2]
[341616306,1731037839170,-520.25,0.00027397,2]
[341616308,1731037839182,-500.0,0.00027397,2]
[341616310,1731037839191,-500.0,0.00027397,2]
[341616312,1731037839200,-500.0,0.00027397,2]
[341616313,1731037839209,-546.71294742,0.00027397,2]
[341616316,1731037839219,-500.0,0.00027397,2]
[341616317,1731037839228,-500.0,0.00027397,2]
[341616319,1731037839238,-512.7553816,0.00027397,2]
[341616321,1731037839247,-500.0,0.00027397,2]
[341616322,1731037839257,-500.0,0.00027397,2]
[341616323,1731037839267,-910.86185506,0.00027397,30]
[341616324,1731037839276,-558.94,0.00027397,2]
[341616325,1731037839285,-500.0,0.00027397,2]
[341616326,1731037839295,-500.0,0.00027397,2]
[341616327,1731037839304,-524.49,0.00027397,2]
[341616328,1731037839313,-500.0,0.00027397,2]
[341616329,1731037839323,-500.0,0.00027397,2]
[341616330,1731037839332,-596.66630663,0.00027397,2]
[341616331,1731037839342,-500.0,0.00027397,2]
[341616332,1731037839351,-559.08,0.00027397,2]
[341616333,1731037839360,-500.0,0.00027397,2]
[341616334,1731037839370,-533.63,0.00027397,2]
[341616335,1731037839379,-500.0,0.00027397,2]
[341616336,1731037839388,-500.0,0.00027397,2]
[341616337,1731037839398,-500.0,0.00027397,2]
[341616338,1731037839407,-500.0,0.00027397,2]
[341616339,1731037839417,-500.0,0.00027397,2]
[341616340,1731037839428,-500.0,0.00027397,2]
[341616341,1731037839437,-500.0,0.00027397,2]
[341616342,1731037839447,-634.64,0.00027397,2]
[341616343,1731037839456,-500.0,0.00027397,2]
[341616344,1731037839465,-553.69,0.00027397,2]
[341616345,1731037839475,-500.0,0.00027397,2]
[341616346,1731037839484,-1197.43,0.00027397,2]
[341616347,1731037839494,-500.0,0.00027397,2]
[341616348,1731037839503,-500.0,0.00027397,2]
[341616349,1731037839513,-500.0,0.00027397,2]
[341616350,1731037839523,-500.0,0.00027397,2]
[341616351,1731037839533,-500.0,0.00027397,2]
[341616352,1731037839542,-500.0,0.00027397,2]
[341616353,1731037839552,-500.0,0.00027397,2]
[341616354,1731037839562,-650.59,0.00027397,2]
[341616355,1731037839572,-500.0,0.00027397,2]
[341616356,1731037839581,-500.0,0.00027397,2]
[341616357,1731037839592,-500.0,0.00027397,2]
[341616358,1731037839601,-500.0,0.00027397,2]
[341616359,1731037839610,-500.0,0.00027397,2]
[341616360,1731037839620,-500.0,0.00027397,2]
[341616361,1731037839630,-134.02641925,0.00027397,2]
[341616363,1731037840240,-432.05743494,0.00027397,2]
[341616364,1731037840250,-543.83,0.00027397,2]
[341616365,1731037840259,-500.0,0.00027397,2]
[341616366,1731037840267,-388.00677648,0.00027397,2]
[341616369,1731037845327,-871.0,0.000249,2]
[341616370,1731037845337,-150.0,0.00026301,2]
[341616371,1731037845347,-111.99322352,0.00027397,2]
[341616372,1731037845356,-969.08,0.00027397,2]
[341616373,1731037845366,-500.0,0.00027397,2]
[341616374,1731037845375,-526.23520908,0.00027397,2]
[341616375,1731037845384,-500.0,0.00027397,2]
[341616376,1731037845393,-355.98753348,0.00027397,2]
[341616377,1731037845467,-25.2872394,0.00027397,2]
[341616378,1731037845721,-118.72522712,0.00027397,2]
[341616380,1731037845731,-193.94620432,0.00027397,2]
[341616387,1731037846042,-306.05379568,0.00027397,2]
[341616388,1731037846052,-433.5413345,0.00027397,2]
[341616389,1731037846591,-66.4586655,0.00027397,2]
[341616390,1731037846602,-593.4,0.00027397,2]
[341616391,1731037846613,-500.0,0.00027397,2]
[341616392,1731037846623,-500.0,0.00027397,2]
[341616393,1731037846633,-500.0,0.00027397,2]
[341616394,1731037846643,-953.24,0.00027397,2]
[341616395,1731037846653,-623.71,0.00027397,2]
[341616396,1731037846663,-500.0,0.00027397,2]
[341616397,1731037846673,-274.42903745,0.00027397,2]
[341616398,1731037846685,-572.74,0.00027397,2]
[341616399,1731037846694,-500.0,0.00027397,2]
[341616400,1731037846703,-500.0,0.00027397,2]
[341616401,1731037846713,-559.86,0.00027397,2]
[341616402,1731037846723,-500.0,0.00027397,2]
[341616403,1731037846733,-500.0,0.00027397,2]
[341616404,1731037846744,-768.85,0.00027397,2]
[341616405,1731037846754,-500.0,0.00027397,2]
[341616406,1731037846763,-500.0,0.00027397,2]
[341616407,1731037846776,-500.0,0.00027397,2]
[341616408,1731037846786,-500.0,0.00027397,2]
[341616409,1731037846795,-500.0,0.00027397,2]
[341616410,1731037846804,-500.0,0.00027397,2]
[341616411,1731037846814,-167.488082,0.00027397,2]
[341616412,1731037846823,-612.37,0.00027397,2]
[341616413,1731037846832,-500.0,0.00027397,2]
[341616414,1731037846840,-500.0,0.00027397,2]
[341616415,1731037846850,-760.32,0.00027397,2]
[341616416,1731037846859,-500.0,0.00027397,2]
[341616417,1731037846869,-776.18,0.00027397,2]
[341616418,1731037846879,-1008.9,0.00027397,2]
[341616419,1731037846889,-224.72,0.00027397,2]
[341616420,1731037846899,-500.0,0.00027397,2]
[341616421,1731037846908,-500.0,0.00027397,2]
[341616422,1731037846917,-532.74,0.00027397,2]
[341616423,1731037846928,-151.57111069,0.00027397,2]
[341616424,1731037846937,-659.9,0.00027397,2]
[341616425,1731037846947,-161.884909,0.00027397,2]
[341616426,1731037846956,-334.23682965,0.00027397,2]
[341616427,1731037846965,-504.9,0.00027397,2]
[341616428,1731037846975,-500.0,0.00027397,2]
[341616429,1731037846984,-500.0,0.00027397,2]
[341616430,1731037846994,-500.0,0.00027397,2]
[341616431,1731037847003,-500.0,0.00027397,2]
[341616432,1731037847012,-500.0,0.00027397,2]
[341616433,1731037847022,-500.0,0.00027397,2]
[341616434,1731037847033,-500.0,0.00027397,2]
[341616435,1731037847042,-500.0,0.00027397,2]
[341616436,1731037847052,-500.0,0.00027397,2]
[341616437,1731037847061,-500.0,0.00027397,2]
[341616438,1731037847070,-500.0,0.00027397,2]
[341616439,1731037847079,-500.0,0.00027397,2]
[341616440,1731037847088,-500.0,0.00027397,2]
[341616441,1731037847098,-500.0,0.00027397,2]
[341616442,1731037847107,-500.0,0.00027397,2]
[341616443,1731037847116,-773.91,0.00027397,2]
[341616444,1731037847126,-500.0,0.00027397,2]
[341616445,1731037847135,-500.0,0.00027397,2]
[341616446,1731037847144,-500.0,0.00027397,2]
[341616447,1731037847153,-547.64,0.00027397,2]
[341616448,1731037847163,-647.22,0.00027397,2]
[341616449,1731037847173,-500.0,0.00027397,2]
[341616450,1731037847183,-652.95,0.00027397,2]
[341616451,1731037847193,-500.0,0.00027397,2]
[341616452,1731037847202,-500.0,0.00027397,2]
[341616453,1731037847211,-500.0,0.00027397,2]
[341616454,1731037847220,-500.0,0.00027397,2]
[341616455,1731037847230,-500.0,0.00027397,2]
[341616456,1731037847239,-563.43,0.00027397,2]
[341616457,1731037847248,-500.0,0.00027397,2]
[341616458,1731037847256,-996.64,0.00027397,2]
[341616459,1731037847265,-500.0,0.00027397,2]
[341616460,1731037847275,-500.0,0.00027397,2]
[341616461,1731037847285,-392.51021771,0.00027397,2]
[341616462,1731037847566,-69.637871,0.00027671,120]
[341616463,1731037847598,-1269.0,0.00027918,120]
[341616464,1731037847649,-500.0,0.00028025,120]
[341616465,1731037847679,-500.0,0.00028025,120]
[341616466,1731037847708,-500.0,0.00028025,120]
[341616467,1731037847740,-200.0,0.00028025,120]
[341616468,1731037847796,-300.0,0.000284,120]
[341616469,1731037847888,-630.73,0.00029267,120]
[341616470,1731037847935,-400.0,0.000294,120]
[341616471,1731037847983,-166.91,0.00029604,120]
[341616472,1731037848013,-154.427,0.00029643,120]
[341616473,1731037848062,-4791.4572844,0.0003,120]
[341616474,1731037848092,-151.0,0.0003,120]
[341616475,1731037878787,-15738.50158086,0.0003,120]
[341616476,1731037879758,916.14,0.00024576,2]
[341616477,1731037914787,-29207.39,0.0003,120]